Workbook

Sheet Sheet1
A1: 附件1
A2: 云南省2025年省级电影专资补贴分配明细表
G3: 单位：万元
A4: 序号 | B4: 项目级次 | C4: 地区 | D4: 县（市区） | E4: 其他国家电影事业发展专项资金支出 | F4: 资助国产影片放映 | G4: 合 计
A5: 功能科目分类 | E5: 2070799 | F5: 2070701
A6: 1 | B6: 省本级 | C6: 省委宣传部 | E6: 480
A7: 2 | B7: 省对下 | C7: 昆明市 | D7: 小 计 | F7: =SUM(F8:F19) -> 362.2 | G7: =E7+F7 -> 362.2
D8: 五华区 | F8: 78.9 | G8: 78.9
D9: 官渡区 | F9: 90.2 | G9: 90.2
D10: 西山区 | F10: 67.2 | G10: 67.2
D11: 东川区 | F11: 2.8 | G11: 2.8
D12: 呈贡区 | F12: 49.9 | G12: 49.9
D13: 晋宁区 | F13: 13.1 | G13: 13.1
D14: 宜良县 | F14: 4 | G14: =E14+F14 -> 4
D15: 石林县 | F15: 6.4 | G15: 6.4
D16: 嵩明县 | F16: 13.4 | G16: 13.4
D17: 禄劝县 | F17: 2.9 | G17: 2.9
D18: 寻甸县 | F18: 3.5 | G18: 3.5
D19: 安宁市 | F19: 29.9 | G19: 29.9
A20: 3 | C20: 曲靖市 | D20: 小 计 | F20: =SUM(F21:F28) -> 148 | G20: 148
D21: 麒麟区 | F21: 83.6 | G21: 83.6
D22: 沾益区 | F22: 3.5 | G22: 3.5
D23: 宣威市 | F23: 23.1 | G23: 23.1
D24: 富源县 | F24: 7.6 | G24: 7.6
D25: 罗平县 | F25: 10.6 | G25: 10.6
D26: 师宗县 | F26: 6.6 | G26: 6.6
D27: 陆良县 | F27: 11.4 | G27: 11.4
D28: 会泽县 | F28: 1.6 | G28: 1.6
A29: 4 | C29: 玉溪市 | D29: 小 计 | F29: =SUM(F30:F36) -> 63.1 | G29: 63.1
D30: 红塔区 | F30: 35.3 | G30: 35.3
D31: 江川区 | F31: 4.6 | G31: =E31+F31 -> 4.6
D32: 澄江市 | F32: 4.4 | G32: 4.4
D33: 通海县 | F33: 11.7 | G33: 11.7
D34: 峨山县 | F34: 1.8 | G34: 1.8
D35: 新平县 | F35: 2.8 | G35: 2.8
D36: 华宁县 | F36: 2.5 | G36: 2.5
A37: 5 | C37: 保山市 | D37: 小 计 | F37: =SUM(F38:F39) -> 38.4 | G37: 38.4
D38: 隆阳区 | F38: 22.5 | G38: 22.5
D39: 腾冲市 | F39: 15.9 | G39: 15.9
A40: 6 | C40: 昭通市 | D40: 小 计 | F40: =SUM(F41:F48) -> 68.8 | G40: 68.8
D41: 昭阳区 | F41: 34.9 | G41: 34.9
D42: 巧家县 | F42: 3.1 | G42: 3.1
D43: 镇雄县 | F43: 17.4 | G43: 17.4
D44: 彝良县 | F44: 2.8 | G44: 2.8
D45: 永善县 | F45: 0.8 | G45: 0.8
D46: 绥江县 | F46: 2.5 | G46: 2.5
D47: 水富县 | F47: 5.2 | G47: 5.2
D48: 鲁甸县 | F48: 2.1 | G48: 2.1
A49: 7 | C49: 丽江市 | D49: 小 计 | F49: =SUM(F50:F52) -> 22.9 | G49: 22.9
D50: 古城区 | F50: 19.3 | G50: =E50+F50 -> 19.3
D51: 华坪县 | F51: 2.8 | G51: 2.8
D52: 宁蒗县 | F52: 0.8 | G52: 0.8
A53: 8 | C53: 普洱市 | D53: 小 计 | F53: =SUM(F54:F58) -> 41.7 | G53: 41.7
D54: 思茅区 | F54: 28.8 | G54: 28.8
D55: 澜沧县 | F55: 4.8 | G55: 4.8
D56: 孟连县 | F56: 3.5 | G56: 3.5
D57: 宁洱县 | F57: 4 | G57: 4
D58: 墨江县 | F58: 0.6 | G58: 0.6
A59: 9 | C59: 临沧市 | D59: 小 计 | F59: =SUM(F60:F64) -> 24.9 | G59: 24.9
D60: 临翔区 | F60: 15.8 | G60: 15.8
D61: 云 县 | F61: 2.4 | G61: 2.4
D62: 凤庆县 | F62: 1.3 | G62: 1.3
D63: 耿马县 | F63: 2.9 | G63: 2.9
D64: 双江县 | F64: 2.5 | G64: 2.5
A65: 10 | C65: 楚雄州 | D65: 小 计 | F65: =SUM(F66:F71) -> 48.1 | G65: 48.1
D66: 楚雄市 | F66: 34 | G66: 34
D67: 禄丰市 | F67: 3.8 | G67: 3.8
D68: 南华县 | F68: 1.9 | G68: 1.9
D69: 大姚县 | F69: 5 | G69: 5
D70: 武定县 | F70: 1.5 | G70: 1.5
D71: 元谋县 | F71: 1.9 | G71: 1.9
A72: 11 | C72: 红河州 | D72: 小 计 | F72: =SUM(F73:F81) -> 85.9 | G72: =E72+F72 -> 85.9
D73: 蒙自市 | F73: 30 | G73: 30
D74: 个旧市 | F74: 1.1 | G74: 1.1
D75: 开远市 | F75: 13.1 | G75: 13.1
D76: 弥勒市 | F76: 19.1 | G76: 19.1
D77: 建水县 | F77: 13.6 | G77: 13.6
D78: 石屏县 | F78: 2.2 | G78: 2.2
D79: 泸西县 | F79: 5.4 | G79: 5.4
D80: 元阳县 | F80: 0.6 | G80: 0.6
D81: 河口县 | F81: 0.8 | G81: 0.8
A82: 12 | C82: 文山州 | D82: 小 计 | F82: =SUM(F83:F88) -> 55.7 | G82: 55.7
D83: 文山市 | F83: 32 | G83: 32
D84: 砚山县 | F84: 4.4 | G84: 4.4
D85: 马关县 | F85: 2.8 | G85: 2.8
D86: 丘北县 | F86: 8.1 | G86: 8.1
D87: 广南县 | F87: 5.2 | G87: 5.2
D88: 富宁县 | F88: 3.2 | G88: 3.2
A89: 13 | C89: 西双版纳州 | D89: 小 计 | F89: =SUM(F90:F92) -> 47.3 | G89: 47.3
D90: 景洪市 | F90: 41.9 | G90: 41.9
D91: 勐海县 | F91: 2.7 | G91: 2.7
D92: 勐腊县 | F92: 2.7 | G92: 2.7
A93: 14 | C93: 大理州 | D93: 小 计 | F93: =SUM(F94:F102) -> 74.4 | G93: 74.4
D94: 大理市 | F94: 43.8 | G94: 43.8
D95: 祥云县 | F95: 9.7 | G95: 9.7
D96: 宾川县 | F96: 7.1 | G96: 7.1
D97: 弥渡县 | F97: 6.2 | G97: 6.2
D98: 永平县 | F98: 0.8 | G98: 0.8
D99: 洱源县 | F99: 0.8 | G99: 0.8
D100: 剑川县 | F100: 0.7 | G100: 0.7
D101: 南涧县 | F101: 2.5 | G101: =E101+F101 -> 2.5
D102: 巍山县 | F102: 2.8 | G102: 2.8
A103: 15 | C103: 德宏州 | D103: 小 计 | F103: =SUM(F104:F108) -> 31 | G103: 31
D104: 芒 市 | F104: 11.6 | G104: 11.6
D105: 瑞丽市 | F105: 8.9 | G105: 8.9
D106: 盈江县 | F106: 7.3 | G106: 7.3
D107: 梁河县 | F107: 2.8 | G107: =E107+F107 -> 2.8
D108: 陇川县 | F108: 0.4 | G108: 0.4
A109: 16 | C109: 怒江州 | D109: 小 计 | F109: =SUM(F110:F111) -> 2.4 | G109: 2.4
D110: 泸水市 | F110: 2.1 | G110: 2.1
D111: 兰坪县 | F111: 0.3 | G111: 0.3
A112: 17 | C112: 迪庆州 | D112: 小 计 | F112: =SUM(F113) -> 5.2 | G112: 5.2
D113: 香格里拉市 | F113: 5.2 | G113: 5.2
A114: 合 计 | E114: =SUM(E6:E113) -> 480 | F114: =F112+F109+F103+F93+F89+F82+F72+F65+F59+F53+F49+F40+F37+F29+F20+F7 -> 1120 | G114: 1600
A115: 填表人：张兴瑞 | F115: 填表时间：2025年12月5日
